Workbook

Sheet Summary Sheet
D3: New Jersey Department of Environmental Protection
D4: Site Remediation and Waste Management Program
D6: Extractable Petroleum Hydrocarbon (EPH) Alternative Product Limit Concentration Calculator for Soil
D7: Version 1.1, December 2019 Release Date
C9: Site Name: | F9: Program Interest (PI) Num.
C10: Area of Concern Name | F10: AOC No. (must correspond with CID)
C11: Investigator's Name
C13: Type of Petroleum Product | F13: Default Product Indicator Concentration | G13: ='Look-up Tables'!$L$3 ->  | H13: mg/kg EPH
B14: μo | C14: Dynamic Viscosity of the Petroleum Product (poise) | E14: ='Look-up Tables'!$I$3 ->  | F14: poise
B15: ρo | C15: Density of the Petroleum Product (gram/cm^3) | E15: ='Look-up Tables'!$J$3 ->  | F15: gram/cm^3
C17: Select the number of Grain Size Samples that were analyzed for this AOC. Click the quantity of grain size samples: 3 samples or 4 samples. | E17: 8
C18: 1
E19: Sample 1 | F19: Sample 2 | G19: Sample 3 | H19: Sample 4
C20: Sample Identification Name/Number
C21: For each sample, click the bullet corresponding to source of D10 value.
B24: D10 | C24: Grain Size with 10% of Soil Passing through the Sieve (mm) | E24: ='Grain Size Data Entry'!$F$7 -> 0 | F24: ='Grain Size Data Entry'!L7 -> 0 | G24: ='Grain Size Data Entry'!Q7 -> 0 | H24: ='Grain Size Data Entry'!V7 -> 0
B25: k | C25: Intrinsic Permeability (m2) -calculated based on D10 | E25: ='Parameter Definition & Calculat'!$E$112 -> 1.099955313e-11 | F25: ='Parameter Definition & Calculat'!$I$112 -> 1.099955313e-11 | G25: ='Parameter Definition & Calculat'!$M$112 -> 1.099955313e-11 | H25: ='Parameter Definition & Calculat'!$Q$112 -> 1.099955313e-11
C27: Calculated EPH Product Limit Concentration for each grain size sample. | D27: mg/kg of EPH | E27: ='Parameter Definition & Calculat'!$D$90 ->  | F27: ='Parameter Definition & Calculat'!$H$90 ->  | G27: ='Parameter Definition & Calculat'!$L$90 ->  | H27: ='Parameter Definition & Calculat'!$P$90 -> 
C28: Maximum Allowable EPH Concentration in Soil (i.e., NJDEP Ceiling Limit) | D28: mg/kg of EPH | E28: ='Look-up Tables'!$K$3 ->  | F28: ='Look-up Tables'!$K$3 ->  | G28: ='Look-up Tables'!$K$3 ->  | H28: ='Look-up Tables'!$K$3 -> 
C29: EPH Alternative Product Limit Concentration for Soil in this AOC | E29: =IF(H29>'Look-up Tables'!$K$3,'Look-up Tables'!$K$3,H29) ->  | F29: mg/kg EPH | H29: =IF($C$18=2,(MEDIAN($E$27,$F$27,$G$27,$H$27)),(MEDIAN($E$27,$F$27,$G$27))) -> 

Sheet Grain Size Data Entry
D2: New Jersey Department of Environmental Protection
D3: Site Remediation and Waste Management Program
D5: Extractable Petroleum Hydrocarbon (EPH) Alternative Product Limit Concentration Calculator for Soil
D6: Version 1.1, December 2019 Release Date
B7: 1 | F7: =IF(B7=1,E10,E28) -> 0 | I7: 1 | L7: =IF(I7=1,K10,K28) -> 0 | N7: 1 | Q7: =IF(N7=1,P10,P28) -> 0 | S7: 1 | V7: =IF(S7=1,U10,U28) -> 0
C8: Sample 1 | I8: Sample 2 | N8: Sample 3 | S8: Sample 4
D9: Lab Sample Name | E9: ='Summary Sheet'!$E$20 -> 0 | J9: Lab Sample Name | K9: ='Summary Sheet'!$F$20 -> 0 | O9: Lab Sample Name | P9: ='Summary Sheet'!$G$20 -> 0 | T9: Lab Sample Name | U9: ='Summary Sheet'!$H$20 -> 0
D10: Lab D10= | F10: mm | J10: Lab D10= | L10: mm | O10: Lab D10= | Q10: mm | T10: Lab D10= | V10: mm
E11: Grain Size from Sieve (mm of Sieve) | F11: Percent of soil mass passing through the sieve | G11: Percent of material mass retained on the sieve | J11: Grain Size from Sieve (mm of Sieve) | K11: Percent of soil mass passing through the sieve | L11: Percent of material mass retained on the sieve | O11: Grain Size from Sieve (mm of Sieve) | P11: Percent of soil mass passing through the sieve | Q11: Percent of material mass retained on the sieve | T11: Grain Size from Sieve (mm of Sieve) | U11: Percent of soil mass passing through the sieve | V11: Percent of material mass retained on the sieve
G13: =1-F13 -> 1 | L13: =1-K13 -> 1 | Q13: =1-P13 -> 1 | V13: =1-U13 -> 1
G14: 1 | L14: =1-K14 -> 1 | Q14: =1-P14 -> 1 | V14: =1-U14 -> 1
G15: 1 | L15: 1 | Q15: 1 | V15: 1
G16: 1 | L16: 1 | Q16: 1 | V16: 1
G17: 1 | L17: 1 | O17: 4.75 | Q17: 1 | V17: 1
G18: 1 | L18: 1 | O18: 2.36 | Q18: 1 | V18: 1
G19: 1 | L19: 1 | O19: 2 | Q19: 1 | V19: 1
G20: 1 | L20: 1 | O20: 1.18 | Q20: 1 | V20: 1
G21: 1 | L21: 1 | O21: 0.6 | Q21: 1 | V21: 1
G22: 1 | L22: 1 | O22: 0.3 | Q22: 1 | V22: 1
G23: 1 | L23: 1 | O23: 0.15 | Q23: 1 | V23: 1
G24: 1 | L24: 1 | O24: 0.075 | Q24: 1 | V24: 1
G25: 1 | L25: 1 | O25: 0.03 | Q25: =1-P25 -> 1 | V25: 1
G26: 1 | L26: 1 | O26: 0.005 | Q26: 1 | V26: 1
G27: 1 | L27: 1 | O27: 0.0015 | Q27: 1 | V27: 1
D28: Calc. D10= | E28: =+MAX(F32:F46) -> 0.0015 | F28: mm | J28: Calc. D10= | K28: =+MAX(K32:K46) -> 0.0015 | L28: mm | O28: Calc. D10= | P28: =+MAX(P32:P46) -> 0.0015 | Q28: mm | T28: Calc. D10= | U28: =+MAX(U32:U46) -> 0.0015 | V28: mm
B30: Data Points to be Hidden After Spreadsheet review Calculation of D10 from the Grain Size Data -
E31: =E11 -> Grain Size from Sieve (mm of Sieve) | F31: D10 is the greatest of the values listed below | J31: =J11 -> Grain Size from Sieve (mm of Sieve) | K31: D10 is the greatest of the values listed below | O31: =O11 -> Grain Size from Sieve (mm of Sieve) | P31: D10 is the greatest of the values listed below | T31: =T11 -> Grain Size from Sieve (mm of Sieve) | U31: D10 is the greatest of the values listed below
E32: =+IF(AND(F13>=10%,F14<=10%),E13,IF(AND(F13<=10%,F12>=10%),E13,0)) -> 0 | F32: =+IF(E32*E33>0,E13-(F13-10%)/(F13-F14)*(E13-E14),0) -> 0 | J32: =+IF(AND(K13>=10%,K14<=10%),J13,IF(AND(K13<=10%,K12>=10%),J13,0)) -> 0 | K32: =+IF(J32*J33>0,J13-(K13-10%)/(K13-K14)*(J13-J14),0) -> 0 | O32: =+IF(AND(P13>=10%,P14<=10%),O13,IF(AND(P13<=10%,P12>=10%),O13,0)) -> 0 | P32: =+IF(O32*O33>0,O13-(P13-10%)/(P13-P14)*(O13-O14),0) -> 0 | T32: =+IF(AND(U13>10%,U14<10%),T13,IF(AND(U13<10%,U12>10%),T13,0)) -> 0 | U32: =+IF(T32*T33>0,T13-(U13-10%)/(U13-U14)*(T13-T14),0) -> 0
E33: =+IF(AND(F14>=10%,F15<=10%),E14,IF(AND(F14<=10%,F13>=10%),E14,0)) -> 0 | F33: 0 | J33: =+IF(AND(K14>=10%,K15<=10%),J14,IF(AND(K14<=10%,K13>=10%),J14,0)) -> 0 | K33: =+IF(J33*J34>0,J14-(K14-10%)/(K14-K15)*(J14-J15),0) -> 0 | O33: =+IF(AND(P14>=10%,P15<=10%),O14,IF(AND(P14<=10%,P13>=10%),O14,0)) -> 0 | P33: =+IF(O33*O34>0,O14-(P14-10%)/(P14-P15)*(O14-O15),0) -> 0 | T33: 0 | U33: =+IF(T33*T34>0,T14-(U14-10%)/(U14-U15)*(T14-T15),0) -> 0
E34: 0 | F34: 0 | J34: 0 | K34: 0 | O34: 0 | P34: =+IF(O34*O35>0,O15-(P15-10%)/(P15-P16)*(O15-O16),0) -> 0 | T34: 0 | U34: 0
E35: 0 | F35: 0 | J35: 0 | K35: 0 | O35: 0 | P35: 0 | T35: 0 | U35: 0
E36: 0 | F36: 0 | J36: 0 | K36: 0 | O36: 0 | P36: 0 | T36: 0 | U36: 0
E37: 0 | F37: 0 | J37: 0 | K37: 0 | O37: 0 | P37: 0 | T37: 0 | U37: 0
E38: 0 | F38: 0 | J38: 0 | K38: 0 | O38: 0 | P38: 0 | T38: 0 | U38: 0
E39: 0 | F39: 0 | J39: 0 | K39: 0 | O39: 0 | P39: 0 | T39: 0 | U39: 0
E40: 0 | F40: 0 | J40: 0 | K40: 0 | O40: 0 | P40: 0 | T40: 0 | U40: 0
E41: 0 | F41: =+IF(E41*E42>0,E22-(F22-10%)/(F22-F23)*(E22-E23),0) -> 0 | J41: 0 | K41: 0 | O41: 0 | P41: 0 | T41: 0 | U41: 0
E42: 0 | F42: 0 | J42: 0 | K42: 0 | O42: 0 | P42: 0 | T42: 0 | U42: 0
E43: 0 | F43: 0 | J43: 0 | K43: 0 | O43: 0 | P43: 0 | T43: 0 | U43: 0
E44: 0 | F44: 0 | J44: 0 | K44: 0 | O44: 0 | P44: 0 | T44: 0 | U44: 0
E45: 0 | F45: 0 | J45: 0 | K45: 0 | O45: 0 | P45: 0 | T45: 0 | U45: 0
E46: 0 | F46: =IF(SUM(F32:F45)>0,0,0.0015) -> 0.0015 | J46: =+IF(AND(K27>10%,K31<10%),J27,IF(AND(K27<10%,K26>10%),J27,0)) -> 0 | K46: =IF(SUM(K32:K45)>0,0,0.0015) -> 0.0015 | O46: =+IF(AND(P27>10%,P31<10%),O27,IF(AND(P27<10%,P26>10%),O27,0)) -> 0 | P46: =IF(SUM(P32:P45)>0,0,0.0015) -> 0.0015 | T46: =+IF(AND(U27>10%,U31<10%),T27,IF(AND(U27<10%,U26>10%),T27,0)) -> 0 | U46: =IF(SUM(U32:U45)>0,0,0.0015) -> 0.0015

Sheet Look-up Tables (hidden)
A2: 7:26E Table 2-1 | B2: Type of Petroleum Product Source Material | C2: EPH Category | D2: Viscosity (poise) | E2: Oil Density (gm/cm^3) | G2: Type of LNAPL Source Material | H2: EPH Category | I2: Viscosity (poise) | J2: Oil Density (gram/ cm^3) | K2: Selected Ceiling Value | L2: Default Product Indicator Concentration (mg/kg)
A3: No. 2 Heating Oil | B3: No. 2 Heating Oil | C3: Category 1 | D3: 0.02 | E3: 0.8245 | G3: ='Summary Sheet'!$D$13 -> 0 | H3: =VLOOKUP(G3,B3:C16,2,FALSE) ->  | I3: =VLOOKUP(G3,B3:D16,3,FALSE) ->  | J3: =VLOOKUP(G3,B3:E16,4,FALSE) ->  | K3: =VLOOKUP(H3,B19:C21,2,FALSE) ->  | L3: =VLOOKUP(H3,B19:D21,3,FALSE) -> 
A4: Diesel Fuel | B4: Diesel Fuel | C4: Category 1 | D4: 0.02 | E4: 0.8245
A5: No. 4 Heating Oil | B5: No. 4 Heating Oil | C5: Category 2 | D5: 0.23 | E5: 0.925
A6: No. 6 Heating Oil | B6: No. 6 Heating Oil | C6: Category 2 | D6: 403.4 | E6: 0.9879
A7: Hydraulic Oil | B7: Hydraulic Oil | C7: Category 2 | D7: 1.02 | E7: 0.8727
A8: Cutting Oil | B8: Cutting Oil | C8: Eqivalent Category 1 | D8: 0.02 | E8: 0.8245
A9: Lubricating Oil | B9: Lubricating Oil | C9: Category 2 | D9: 1.4217 | E9: 0.8498
A10: Waste Oil | B10: Waste Oil- Known Source Material | C10: See Instruction | D10: Use Source Material | E10: Use Source Material
A11: Unknown Petroleum Hydrocarbons | B11: Unknown Petroleum Hydrocarbon | C11: Eqivalent Category 1 | D11: 0.02 | E11: 0.8245
A12: Waste Vehicular Crankcase Oil | B12: Waste Vehicular Crankcase Oil | C12: Category 2 | D12: 1.75 | E12: 0.8848
A13: Mineral Oil | B13: Mineral Oil | C13: Category 2 | D13: 0.19 | E13: 0.8673
A14: Dielectric Fluid, Dielectric Mineral Oil, Transformer Oil | B14: Dielectric Fluid, Dielectric Mineral Oil, Transformer Oil | C14: Category 2 | D14: 0.19 | E14: 0.8673
B15: Crude Oil | C15: Contact DEP | D15: Contact DEP | E15: Not App.
B16: Manufactured Gas Plant (MGP) | C16: Contact DEP | D16: Contact DEP | E16: Not App.
B18: Ceiling Values | D18: Default Product Indicator Concentration (mg/kg)
B19: Category 1 | C19: 30000 | D19: 8000
B20: Category 2 | C20: 30000 | D20: 17000
B21: Eqivalent Category 1 | C21: 30000 | D21: 8000
F23: Minutes/ day
A24: Velocity Conversion of Units Calculations - Meters/second to Feet/Year | E24: days/year | F24: 1440 | G24: Seconds / Minute
B25: 1e-10 | C25: m/s | E25: 365 | G25: 60 | H25: =B25*E25*F24*F24 -> 0.0756864 | I25: m/year
B26: 3.35 | C26: ft/m
B27: =B25*B26 -> 3.35e-10 | C27: ft/s
B28: 60 | C28: s/min
B29: 1440 | C29: min/day
B30: 365 | C30: day/yr
B31: =B27*B28*B29*B30 -> 0.01056456 | C31: ft/yr
B32: =B31*100 -> 1.056456 | C32: Ft/100 years

Sheet Parameter Definition & Calculat (hidden)
A2: Input Parameters
B3: Mathematic Symbol | C3: Physical Parameter / Physical Variable | D3: Standard Unit of Measure | E3: Alternate Unit of Measure | F3: Low | G3: Probable | H3: High
B4: C | C4: Concentration of oil per dry soil (Alternative EPH Free Product Limit concentration per dry soil) | D4: mg/kg
B5: Mo | C5: Mass of petroleum hydrocarbon | D5: mg
B6: Ms | C6: Mass of dry soil | D6: kg
B7: ϴo | C7: Ratio of Petroleum Hydrocarbon Volume per sample volume at Residual Saturation | D7: Dimensionless
B8: ρo | C8: Petroleum hydrocarbon liquid density | D8: g/cm3 | G8: 0.84 | I8: Petroleum Product Specific Parameter
B9: ρs | C9: Grain density | D9: g/cm3 | G9: 2.54 | I9: Soil Specific
B10: ρb | C10: Bulk soil density | D10: g/cm3 | G10: 1.5 | I10: Soil Specific
B11: Ø | C11: Soil Porosity | D11: Dimensionless | F11: 0.41 | G11: 0.41 | H11: 0.41 | I11: Soil Specific
B12: S | C12: Petroleum Product (NAPL) Saturation ratio | D12: Dimensionless | I12: Calculated-Soil specific value
B13: Sr | C13: Residual Saturation of oil - Percent of effective porosity | D13: Dimensionless | F13: 0.02 | G13: 0.02 | H13: 0.02 | I13: Selected by Committee
B14: Se | C14: Effective petroleum hydrocarbon saturation ratio | D14: Dimensionless | I14: Calculated-Soil specific value
B15: kr | C15: Relative permeability to petroleum hydrocarbon | D15: Dimensionless
B16: q | C16: Darcy Flux (lowest value where NAPL is considered mobile) | D16: m/s | G16: 9.665e-11 | I16: Selected by the NJDEP. Equivalent to 1 foot in 100 years
B17: K | C17: Hydraulic conductivity | D17: m/s | G17: =G16*G18 -> 9.665e-11 | I17: Calculated based on q and i | L17: cm/s = | M17: =G17*100 -> 9.665e-09
B18: i | C18: Assumed Hydraulic Gradient | D18: m/m | G18: 1
B19: g | C19: Gravitational acceleration | D19: m/s2 | F19: 9.81 | G19: 9.81 | H19: 9.81 | I19: constant
B20: k | C20: Intrinsic permeability | D20: m2 | G20: 1.099955e-09 | I20: Default value is set by the DEP. The calculated value is from the site specific soil D10
B21: μ | C21: Dynamic viscosity of fluid @ 15°C | D21: Poise | F21: 0.02 | G21: 0.02 | H21: 1.75 | I21: Petroleum product type
B22: D10 | C22: Grain size diameter where 10% soil passes | D22: mm | I22: Calculated from laboratory grain size distribution
A24: DERIVATION OF THE EQUATION
B25: C | C25: = Mo / Ms | D25: = (ϴo * ρo) / ((1- Ø) * ρs) | H25: =(Site Variable * Oil Constant ) / (Soil Constant * Soil Constant)
B27: ϴo | C27: = Equivalent to NAPL Saturation * Porosity | D27: = S * Ø
B29: C | C29: = (ϴo * ρo) / ((1- Ø) * ρs) | D29: = ( S * Ø * ρo) / ((1- Ø) * ρs) | H29: =(Site Variable* Soil Constant * Oil Constant ) / (Soil Constant * Soil Constant)
B31: S | C31: = Eqivalent to residual hydrocarbon saturation and Effective Petroleum Saturation | D31: = ((1-Sr)*Se) + Sr
B33: C | C33: = ( S * Ø * ρo) / ((1- Ø) * ρs) | D33: = ( ((1-Sr)*Se) + Sr)* Ø * ρo) / ((1- Ø) * ρs) | H33: =Oil Constant * * Soil Constant * Oil Constant ) / (Soil Constant * Soil Constant)
B35: Se | C35: Effective petroleum hydrocarbon saturation ratio | D35: = 1.1349 * kr^0.3095
B37: C | C37: = ( ((1-Sr)*Se) + Sr)* Ø * ρo) / ((1- Ø) * ρs) | D37: = ( ((1-Sr)*( 1.1349 * kr^0.3095)) + Sr)* Ø * ρo) / ((1- Ø) * ρs)
B39: kr | C39: Relative soil permeability to petroleum oil. It is the ratio of effective permeability to the intrinsic permeability of the soil. | D39: = (K * μ) / (k * ρo * g)
B41: Se | C41: Effective petroleum hydrocarbon saturation ratio | D41: = 1.1349 * ( (K * μ) / (k * ρo * g) )^0.3095
B43: C | C43: = ( ((1-Sr)*( 1.1349 * kr0.3095)) + Sr)* Ø * ρo) / ((1- Ø) * ρs) | D43: = ( ((1-Sr)*( 1.1349 * (((K * μ) / (k * ρo * g))^0.3095))) + Sr)* Ø * ρo) / ((1- Ø) * ρs)
C45: = (1-Sr) | D45: =1-$G$13 -> 0.98 | E45: Dimensionless
C46: = 1.1349 | D46: 1.1349 | E46: constant
C47: = (1-Sr)*1.1348 | D47: =$D$45*$D$46 -> 1.112202 | E47: Dimensionless
C48: =(K * μ) | D48: =$G$17*$G$21 -> 1.933e-12 | E48: m * g/cm-s2
C49: =(k * ρo * g) | D49: =G20*$G$8*$G$19 -> 9.064069182e-09 | E49: 100 g2 * s2 /cm2
C50: =Conversion cm2/ m2 | D50: 1 | E50: cm2/m2
B51: kr | C51: =(K * μ) / (k * ρo * g) | D51: =D48/(D49*D50) -> 0.0002132596256 | E51: Dimensionless
C52: =((K * μ) / (k * ρo * g))^0.3095 | D52: =D51^0.3095 -> 0.07307977891
B53: Se | C53: = 1.1349* [((K * μ) / (k * ρo * g))0.3095] | D53: =D52*1.1349 -> 0.08293824109 | E53: Dimensionless
B54: S | C54: = ((1-Sr)*Se) + Sr | D54: =(D45*D53)+G13 -> 0.1012794763 | E54: Dimensionless
B55: ϴo | C55: = S * Ø | D55: =D54*$G$11 -> 0.04152458527 | E55: Dimensionless
B56: Mo | C56: = (ϴo * ρo) | D56: =D55*$G$8 -> 0.03488065163 | E56: mg
B58: Ms | C58: = ((1- Ø) * ρs) | D58: =(1-$G$11)*$G$9 -> 1.4986 | E58: g/cm3
B59: Ms | C59: Units Conversion | D59: =D58/1000 -> 0.0014986 | E59: kg/cm3
B61: Coil | C61: = Mo / Ms | D61: =(D56/D58)*1000000 -> 23275.49154 | E61: mg/kg
A63: Calculation of EPH Indicator for 4 Samples
B65: C = | C65: = ( ((1-Sr)*( 1.1349 * kr0.3095)) + Sr)* Ø * ρo) / ((1- Ø) * ρs) | D65: = ( ((1-Sr)*( 1.1349 * (((K * μ) / (k * ρo * g))^0.3095))) + Sr)* Ø * ρo) / ((1- Ø) * ρs)
D67: Sample #1 | H67: Sample #2 | L67: Sample #3 | P67: Sample #4
B68: μ | C68: ='Summary Sheet'!$C$14 -> Dynamic Viscosity of the Petroleum Product (poise) | D68: ='Summary Sheet'!$E$14 ->  | E68: poise | F68: kg/ (m sec) | H68: ='Summary Sheet'!$E$14 ->  | I68: poise | L68: ='Summary Sheet'!$E$14 ->  | M68: poise | P68: ='Summary Sheet'!$E$14 ->  | Q68: poise
B69: ρo | C69: ='Summary Sheet'!$C$15 -> Density of the Petroleum Product (gram/cm^3) | D69: ='Summary Sheet'!$E$15*1000 ->  | E69: kg/m^3 | H69: ='Summary Sheet'!$E$15*1000 ->  | I69: ='Summary Sheet'!D15 -> 0 | L69: ='Summary Sheet'!$E$15*1000 ->  | M69: ='Summary Sheet'!D15 -> 0 | P69: ='Summary Sheet'!$E$15*1000 ->  | Q69: ='Summary Sheet'!D15 -> 0
B70: D10 | C70: ='Summary Sheet'!$C$24 -> Grain Size with 10% of Soil Passing through the Sieve (mm) | D70: ='Grain Size Data Entry'!$F$7 -> 0 | E70: mm | H70: ='Grain Size Data Entry'!L7 -> 0 | I70: mm | L70: ='Grain Size Data Entry'!Q7 -> 0 | M70: mm | P70: ='Grain Size Data Entry'!V7 -> 0 | Q70: mm
B71: K | C71: Hydraulic Conductivity based on 0.01 feet/year mobility | D71: =G17 -> 9.665e-11 | E71: m/second | H71: =G17 -> 9.665e-11 | I71: m/second | L71: =G17 -> 9.665e-11 | M71: m/second | P71: =G17 -> 9.665e-11 | Q71: m/second
B72: k | C72: ='Summary Sheet'!$C$25 -> Intrinsic Permeability (m2) -calculated based on D10 | D72: ='Summary Sheet'!$E$25 -> 1.099955313e-11 | E72: m^2 | H72: ='Summary Sheet'!$F$25 -> 1.099955313e-11 | I72: calculated m^2 | L72: ='Summary Sheet'!$G$25 -> 1.099955313e-11 | M72: calculated m^2 | P72: ='Summary Sheet'!$H$25 -> 1.099955313e-11 | Q72: calculated m^2
B73: ρs | C73: ='Summary Sheet'!$C$14 -> Dynamic Viscosity of the Petroleum Product (poise) | D73: =$G$9*1000 -> 2540 | E73: kg/m^3 | H73: =$G$9*1000 -> 2540 | I73: kg/m^3 | L73: =$G$9*1000 -> 2540 | M73: kg/m^3 | P73: =$G$9*1000 -> 2540 | Q73: kg/m^3
C75: = (1-Sr) | D75: =1-$G$13 -> 0.98 | E75: Dimensionless | H75: =1-$G$13 -> 0.98 | I75: Dimensionless | L75: =1-$G$13 -> 0.98 | M75: Dimensionless | P75: =1-$G$13 -> 0.98 | Q75: Dimensionless
C76: = 1.1349 | D76: 1.1349 | E76: constant | H76: 1.1349 | I76: constant | L76: 1.1349 | M76: constant | P76: 1.1349 | Q76: constant
C77: = (1-Sr)*1.1348 | D77: =$D$45*$D$46 -> 1.112202 | E77: Dimensionless | H77: =$D$45*$D$46 -> 1.112202 | I77: Dimensionless | L77: =$D$45*$D$46 -> 1.112202 | M77: Dimensionless | P77: =$D$45*$D$46 -> 1.112202 | Q77: Dimensionless
C78: =(K * μ) | D78: =$G$17*$D$68 ->  | E78: meter * gram / cm- sec^2 | H78: =$G$17*H68 ->  | I78: meter * gram / cm- sec^2 | L78: =$G$17*L68 ->  | M78: meter * gram / cm- sec^2 | P78: =$G$17*P68 ->  | Q78: meter * gram / cm- sec^2
C79: =(k * ρo * g) | D79: =$D$72*$D$69*$G$19 ->  | E79: 100 gram^2 * Sec^2 / cm^2 | H79: =H72*H69*$G$19 ->  | I79: 100 gram^2 * Sec^2 / cm^2 | L79: =L72*L69*$G$19 ->  | M79: 100 gram^2 * Sec^2 / cm^2 | P79: =P72*P69*$G$19 ->  | Q79: 100 gram^2 * Sec^2 / cm^2
B80: kr | C80: =(K * μ) / (k * ρo * g) | D80: =$D$78/($D$79) ->  | E80: Dimensionless | H80: =H78/(H79) ->  | I80: Dimensionless | L80: =L78/(L79) ->  | M80: Dimensionless | P80: =P78/(P79) ->  | Q80: Dimensionless
C81: =((K * μ) / (k * ρo * g))0.3095 | D81: =$D$80^0.3095 ->  | H81: =H80^0.3095 ->  | L81: =L80^0.3095 ->  | P81: =P80^0.3095 -> 
B82: Se | C82: = 1.1349* [((K * μ) / (k * ρo * g))0.3095] | D82: =$D$81*1.1349 ->  | E82: Dimensionless | H82: =H81*1.1349 ->  | I82: Dimensionless | L82: =L81*1.1349 ->  | M82: Dimensionless | P82: =P81*1.1349 ->  | Q82: Dimensionless
B83: S | C83: = ((1-Sr)*Se) + Sr | D83: =($D$75*$D$82)+$G$13 ->  | E83: Dimensionless | H83: =(H75*H82)+$G$13 ->  | I83: Dimensionless | L83: =(L75*L82)+$G$13 ->  | M83: Dimensionless | P83: =(P75*P82)+$G$13 ->  | Q83: Dimensionless
B84: ϴo | C84: = S * Ø | D84: =D83*$G$11 ->  | E84: Dimensionless | H84: =H83*$G$11 ->  | I84: Dimensionless | L84: =L83*$G$11 ->  | M84: Dimensionless | P84: =P83*$G$11 ->  | Q84: Dimensionless
B85: Mo | C85: = (ϴo * ρo) | D85: =$D$84*$D$69 ->  | E85: mg | H85: =H84*H69 ->  | I85: mg | L85: =L84*L69 ->  | M85: mg | P85: =P84*P69 ->  | Q85: mg
B87: Ms | C87: = ((1- Ø) * ρs) | D87: =(1-$G$11)*$D$73 -> 1498.6 | E87: g/cm3 | H87: =(1-$G$11)*H73 -> 1498.6 | I87: gram/cm^3 | L87: =(1-$G$11)*L73 -> 1498.6 | M87: gram/cm^3 | P87: =(1-$G$11)*P73 -> 1498.6 | Q87: gram/cm^3
B88: Ms | C88: Units Conversion | D88: =$D$87/1000 -> 1.4986 | E88: kg/ cm3 | H88: =H87/1000 -> 1.4986 | I88: Kgram/ cm^3 | L88: =L87/1000 -> 1.4986 | M88: Kgram/ cm^3 | P88: =P87/1000 -> 1.4986 | Q88: Kgram/ cm^3
B90: Coil | C90: = Mo / Ms | D90: =(D85/D87)*1000000 ->  | E90: mg/kg | H90: =(H85/H87)*1000000 ->  | I90: mg/kg | L90: =(L85/L87)*1000000 ->  | M90: mg/kg | P90: =(P85/P87)*1000000 ->  | Q90: mg/kg
A93: GRAIN SIZE TO CALCULATION OF INTRINSIC PERMEABILITY OF THE SOIL
C95: k = [φ3 * D102 mm2] / [ 180 * (1-φ)2] | D95: Baseline Calculation | H95: Baseline Calculation | L95: Baseline Calculation | P95: Baseline Calculation
C96: Parameter | D96: Sample #1 | H96: Sample #2 | L96: Sample #3 | P96: Sample #4
D97: Constant/ Value | E97: Calculated Value | F97: Unit of Measure | H97: Constant/ Value | I97: Calculated Value | J97: Unit of Measure | L97: Constant/ Value | M97: Calculated Value | N97: Unit of Measure | P97: Constant/ Value | Q97: Calculated Value | R97: Unit of Measure
C98: φ porosity | D98: 0.41 | H98: ='Parameter Definition & Calculat'!$G$11 -> 0.41 | L98: ='Parameter Definition & Calculat'!$G$11 -> 0.41 | P98: ='Parameter Definition & Calculat'!$G$11 -> 0.41
C99: φ3 | E99: =D98^3 -> 0.068921 | I99: =H98^3 -> 0.068921 | M99: =L98^3 -> 0.068921 | Q99: =P98^3 -> 0.068921
C100: D10 sieve diam (mm) retaining 90% of dry sample mass = very fine sand | D100: =$D$70 -> 0 | H100: =$H$70 -> 0 | L100: =$L$70 -> 0 | P100: =$P$70 -> 0
D101: =IF(D100=0,0.1,D100) -> 0.1 | H101: =IF(H100=0,0.1,H100) -> 0.1 | L101: =IF(L100=0,0.1,L100) -> 0.1 | P101: =IF(P100=0,0.1,P100) -> 0.1
C102: D102 mm2 | E102: =D101^2 -> 0.01 | I102: =H101^2 -> 0.01 | M102: =L101^2 -> 0.01 | Q102: =P101^2 -> 0.01
C103: Constant | D103: 180 | H103: 180 | L103: 180 | P103: 180
C104: 1-φ | E104: =1-D98 -> 0.59 | I104: =1-H98 -> 0.59 | M104: =1-L98 -> 0.59 | Q104: =1-P98 -> 0.59
C105: (1-φ)2 | E105: =E104^2 -> 0.3481 | I105: =I104^2 -> 0.3481 | M105: =M104^2 -> 0.3481 | Q105: =Q104^2 -> 0.3481
C106: Numerator = φ3 * D102 mm2 | E106: =E99*E102 -> 0.00068921 | I106: =I99*I102 -> 0.00068921 | M106: =M99*M102 -> 0.00068921 | Q106: =Q99*Q102 -> 0.00068921
C108: Denominator = 180 * (1-φ)2 | E108: =D103*E105 -> 62.658 | I108: =H103*I105 -> 62.658 | M108: =L103*M105 -> 62.658 | Q108: =P103*Q105 -> 62.658
C109: Intrinsic Permeability k (mm2) | E109: =E106/E108 -> 1.099955313e-05 | I109: =I106/I108 -> 1.099955313e-05 | M109: =M106/M108 -> 1.099955313e-05 | Q109: =Q106/Q108 -> 1.099955313e-05
C110: Convert to sq meters: 1 m2 per 106 mm2 | D110: 1000000 | H110: 1000000 | L110: 1000000 | P110: 1000000
C112: Intrinsic Permeability k in m2 | E112: =E109/D110 -> 1.099955313e-11 | F112: m^2 | I112: =I109/H110 -> 1.099955313e-11 | J112: m^2 | M112: =M109/L110 -> 1.099955313e-11 | N112: m^2 | Q112: =Q109/P110 -> 1.099955313e-11 | R112: m^2
